bitfinex-derivatives/quotes_BTCF0:USTF0_20260107
["timestamp","ask_amount","ask_price","bid_price","bid_amount"]
[1767744927388,0.09084,93642.0,93625.0,0.14099256]
[1767744927892,0.09084,93642.0,93625.0,0.09197759]
[1767744928197,0.09420033,93642.0,93626.0,0.010685]
[1767744928487,0.00336033,93641.0,93626.0,0.010685]
[1767744928884,0.00336033,93641.0,93628.0,0.010685]
[1767744930700,0.010684,93640.0,93625.0,0.010685]
[1767744930900,0.00226368,93636.0,93625.0,0.010685]
[1767744931200,0.00226368,93635.0,93625.0,0.010685]
[1767744931391,0.00226368,93639.0,93627.0,0.010685]
[1767744932003,0.00226368,93639.0,93619.0,0.04378465]
[1767744932904,0.00226368,93639.0,93631.0,0.010685]
[1767744933800,0.00226368,93639.0,93628.0,0.010685]
[1767744934204,0.00226368,93639.0,93630.0,0.010685]
[1767744934700,0.00090026,93656.0,93628.0,0.04378465]
[1767744935003,0.00090026,93653.0,93630.0,0.04378465]
[1767744935203,0.09991463,93651.0,93630.0,0.04378465]
[1767744935401,0.00090026,93649.0,93629.0,0.09180001]
[1767744935798,0.00039104,93648.0,93629.0,0.09180001]
[1767744935998,0.00039104,93647.0,93627.0,0.04378465]
[1767744936200,0.09901437,93642.0,93621.0,0.010686]
[1767744936510,0.00039104,93639.0,93631.0,0.010685]
[1767744936808,0.09901437,93640.0,93632.0,0.010684]
[1767744937009,0.09088,93642.0,93623.0,0.010685]
[1767744937306,0.09088,93642.0,93632.0,0.010684]
[1767744938611,0.010683,93641.0,93629.0,0.010685]
[1767744938809,0.010684,93640.0,93626.0,0.010685]
[1767744940005,0.010684,93640.0,93618.0,0.09180001]
[1767744940207,0.010684,93639.0,93625.0,0.010685]
[1767744940709,0.010684,93638.0,93625.0,0.010685]
[1767744941209,0.05473464,93638.0,93625.0,0.010685]
[1767744941410,0.04405064,93637.0,93625.0,0.010685]
[1767744942297,0.010684,93636.0,93618.0,0.13558466]
[1767744942697,0.04316017,93631.0,93618.0,0.010686]
[1767744942901,0.04316017,93631.0,93620.0,0.010686]
[1767744943414,0.04316017,93631.0,93613.0,0.010687]
[1767744943804,0.04316017,93631.0,93623.0,0.010685]
[1767744944207,0.09901437,93632.0,93623.0,0.010685]
[1767744944720,0.14154531,93632.0,93623.0,0.010685]
[1767744945412,0.23242531,93632.0,93623.0,0.010685]
[1767744946114,0.04202888,93631.0,93623.0,0.010685]
[1767744946318,0.04202888,93630.0,93611.0,0.09180001]
[1767744947215,0.04094059,93623.0,93605.0,0.09180001]
[1767744948421,0.04094059,93623.0,93603.0,0.09088]
[1767744948422,0.12106408,93632.0,93620.0,0.010686]
[1767744948618,0.09088,93631.0,93624.0,0.010685]
[1767744948922,0.09088,93630.0,93623.0,0.010685]
[1767744949124,0.09088,93630.0,93617.0,0.09180001]
[1767744949520,0.03015304,93627.0,93606.0,0.010687]
[1767744949711,0.03097128,93626.0,93606.0,0.010687]
[1767744950513,0.03097128,93626.0,93605.0,0.09180001]
[1767744951018,0.03097128,93626.0,93616.0,0.010686]
[1767744951219,0.03097128,93626.0,93605.0,0.10248701]
[1767744951414,0.03097128,93626.0,93616.0,0.010686]
[1767744951619,0.03209077,93625.0,93606.0,0.010687]
[1767744952323,0.01180544,93631.0,93623.0,0.010685]
[1767744952524,0.09088,93630.0,93623.0,0.010685]
[1767744952729,0.09088,93629.0,93616.0,0.05447065]
[1767744952928,0.09088,93628.0,93616.0,0.05447065]
[1767744953228,0.09088,93628.0,93623.0,0.010685]
[1767744953524,0.09088,93628.0,93620.0,0.010686]
[1767744953718,0.09088,93628.0,93617.0,0.010686]
[1767744954121,0.00862545,93627.0,93604.0,0.09180001]
[1767744954324,0.00862545,93626.0,93605.0,0.05447165]
[1767744954523,0.00862545,93626.0,93606.0,0.05447165]
[1767744954921,0.00862545,93626.0,93612.0,0.010687]
[1767744955821,0.00862545,93626.0,93614.0,0.010686]
[1767744956728,0.00739521,93624.0,93605.0,0.09180001]
[1767744956930,0.09901437,93620.0,93603.0,0.09088]
[1767744957128,0.09901437,93620.0,93598.0,0.09180001]
[1767744957331,0.09901437,93620.0,93583.0,0.01069]
[1767744957332,0.09901437,93610.0,93583.0,0.04378465]
[1767744957526,0.010688,93605.0,93586.0,0.01069]
[1767744957827,0.09901437,93603.0,93588.0,0.010689]
[1767744958022,0.09901437,93603.0,93585.0,0.00011053]
[1767744958222,0.10970237,93603.0,93588.0,0.010689]
[1767744958424,0.09901437,93603.0,93588.0,0.010689]
[1767744958730,0.010686,93618.0,93588.0,0.010689]
[1767744958731,0.010687,93612.0,93589.0,0.04378465]
[1767744958930,0.09088,93611.0,93596.0,0.010689]
[1767744959326,0.09088,93620.0,93604.0,0.04378465]
[1767744959518,0.09088,93619.0,93608.0,0.010687]
[1767744959719,0.09088,93623.0,93620.0,0.010686]
[1767744959920,0.18989437,93642.0,93621.0,0.04378465]
[1767744960223,0.18989437,93642.0,93622.0,0.13558466]
[1767744960730,0.010684,93639.0,93616.0,0.13558466]
[1767744960930,0.00492898,93639.0,93624.0,0.010685]
[1767744961228,0.10290567,93642.0,93626.0,0.010685]
[1767744961620,0.10290567,93642.0,93626.0,0.14660815]
[1767744961821,0.10290567,93642.0,93630.0,0.010685]
[1767744962829,0.10290567,93642.0,93626.0,0.14660815]
[1767744963132,0.10290567,93642.0,93630.0,0.010685]
[1767744964718,0.01202567,93642.0,93632.0,0.010684]
[1767744964923,0.09088,93643.0,93627.0,0.04820475]
[1767744965831,0.10402812,93643.0,93628.0,0.14660815]
[1767744966024,0.10402812,93643.0,93631.0,0.010684]
[1767744967533,0.00539005,93652.0,93639.0,0.010684]
[1767744967728,0.09627005,93652.0,93632.0,0.14301524]
[1767744968030,0.14460953,93650.0,93626.0,0.09088]
[1767744968240,0.047627,93649.0,93626.0,0.09088]
[1767744968618,0.047627,93649.0,93637.0,0.010684]
[1767744968826,0.04742044,93643.0,93614.0,0.010686]
[1767744969026,0.14440297,93643.0,93615.0,0.09088]
[1767744969326,0.04742044,93630.0,93604.0,0.010688]
[1767744969525,0.14440297,93630.0,93621.0,0.010686]
[1767744969720,0.14440297,93630.0,93618.0,0.010686]
[1767744969925,0.14427416,93629.0,93611.0,0.09088]
[1767744970325,0.14427416,93629.0,93618.0,0.010686]
[1767744972135,0.14427416,93629.0,93620.0,0.010686]
[1767744972336,0.14427416,93629.0,93617.0,0.010686]
[1767744972538,0.09088,93628.0,93617.0,0.010686]
[1767744972833,0.09698253,93618.0,93608.0,0.010687]
[1767744973037,0.13407368,93617.0,93600.0,0.0897496]
[1767744973235,0.09088,93616.0,93600.0,0.0897496]
[1767744974136,0.09088,93616.0,93606.0,0.010687]
[1767744974536,0.09088,93616.0,93600.0,0.0897496]
[1767744974740,0.09088,93616.0,93613.0,0.010687]
[1767744975438,0.09088,93616.0,93610.0,0.010687]
[1767744978440,0.09088,93616.0,93602.0,0.04743697]
[1767744978837,0.09088,93616.0,93586.0,0.14301524]
[1767744978838,0.04216096,93609.0,93586.0,0.14301524]
[1767744979029,0.09698253,93610.0,93594.0,0.010689]
[1767744979232,0.04216096,93613.0,93598.0,0.010688]
[1767744979937,0.04216096,93613.0,93599.0,0.00213679]
[1767744980139,0.18786253,93616.0,93585.0,0.00011053]
[1767744980140,0.05795526,93605.0,93585.0,0.00011053]
[1767744980338,0.0897496,93600.0,93585.0,0.00011053]
[1767744980640,0.04726726,93603.0,93589.0,0.010689]
[1767744981540,0.04726726,93603.0,93591.0,0.010689]
[1767744983640,0.04468227,93601.0,93591.0,0.010689]
[1767744983834,0.04468227,93601.0,93585.0,0.00011053]
[1767744984035,0.03399327,93598.0,93585.0,0.00011053]
[1767744984230,0.03399327,93596.0,93570.0,0.1203]
[1767744984439,0.04468227,93593.0,93571.0,0.14301524]
[1767744984647,0.13131843,93585.0,93570.0,0.1203]
[1767744984843,0.13131843,93585.0,93569.0,0.00213747]
[1767744985045,0.09088,93588.0,93577.0,0.010691]
[1767744985341,0.13131843,93586.0,93570.0,0.010691]
[1767744985547,0.0343359,93576.0,93565.0,0.010692]
[1767744985843,0.09698253,93572.0,93551.0,0.010694]
[1767744986244,0.09698253,93572.0,93552.0,0.4]
[1767744986437,0.09698253,93572.0,93564.0,0.010692]
[1767744987032,0.12517001,93575.0,93564.0,0.010692]
[1767744987246,0.03484468,93574.0,93564.0,0.010692]
[1767744987845,0.03484468,93574.0,93551.0,0.010694]
[1767744988142,0.03424534,93573.0,93559.0,0.010693]
[1767744988333,0.03424534,93570.0,93551.0,0.09557827]
[1767744989437,0.09099053,93575.0,93552.0,0.010693]
[1767744989637,0.09099053,93575.0,93562.0,0.010692]
[1767744990141,0.1042228,93575.0,93562.0,0.010692]
[1767744991051,0.1042228,93575.0,93563.0,0.010692]
[1767744991533,0.00029768,93574.0,93563.0,0.010692]
[1767744994145,0.09099053,93575.0,93560.0,0.09636028]
[1767744994547,0.010688,93597.0,93574.0,0.10705128]
[1767744994742,0.08006442,93595.0,93574.0,0.010691]
[1767744995142,0.01318814,93595.0,93573.0,0.14991269]
[1767744995446,0.010687,93608.0,93586.0,0.09636028]
[1767744995652,0.010687,93606.0,93590.0,0.010689]
[1767744995851,0.010688,93602.0,93587.0,0.01069]
[1767744996151,0.01333362,93602.0,93584.0,0.01069]
[1767744996353,0.010688,93602.0,93584.0,0.01069]
[1767744996551,0.010688,93602.0,93586.0,0.01069]
[1767744997642,0.010688,93600.0,93582.0,0.01069]
[1767744997844,0.010688,93600.0,93584.0,0.01069]
[1767744998750,0.08091841,93598.0,93581.0,0.01069]
[1767744999454,0.08091841,93598.0,93578.0,0.01069]
[1767744999750,0.09160741,93591.0,93575.0,0.010691]
[1767744999951,0.010689,93589.0,93575.0,0.010691]
[1767745000453,0.01069,93585.0,93572.0,0.010691]
[1767745000640,0.01069,93580.0,93566.0,0.010692]
[1767745001045,0.09092,93579.0,93568.0,0.010692]
[1767745001245,0.09092,93579.0,93570.0,0.010691]
[1767745001445,0.09092,93579.0,93572.0,0.010691]
[1767745002260,0.09092,93579.0,93569.0,0.010692]
[1767745003258,0.09092,93579.0,93572.0,0.010691]
[1767745003457,0.09092,93578.0,93572.0,0.010691]
[1767745003757,0.09092,93577.0,93572.0,0.010691]
[1767745004455,0.09092,93577.0,93569.0,0.00213747]
[1767745004646,0.09092,93577.0,93572.0,0.010691]
[1767745004844,0.09092,93577.0,93569.0,0.01282947]
[1767745005961,0.09092,93577.0,93569.0,0.00849034]
[1767745006162,0.09092,93577.0,93557.0,0.09636028]
[1767745006862,0.09092,93576.0,93566.0,0.010692]
[1767745007062,0.09092,93576.0,93562.0,0.010692]
[1767745007262,0.09092,93576.0,93536.0,0.010695]
[1767745007263,0.010691,93574.0,93556.0,0.010693]
[1767745007461,0.010691,93574.0,93558.0,0.010693]
[1767745008055,0.09092,93576.0,93558.0,0.010693]
[1767745008255,0.010691,93575.0,93560.0,0.010693]
[1767745008452,0.09092,93576.0,93557.0,0.010693]
[1767745008453,0.010691,93573.0,93557.0,0.010693]
[1767745008761,0.09092,93576.0,93546.0,0.10705428]
[1767745008762,0.010693,93561.0,93546.0,0.10705428]
[1767745008966,0.08986207,93560.0,93548.0,0.010694]
[1767745009165,0.09092,93561.0,93548.0,0.010694]
[1767745009663,0.09092,93561.0,93546.0,0.09636028]
[1767745009965,0.010689,93595.0,93554.0,0.09636028]
[1767745009966,0.0825069,93578.0,93554.0,0.09636028]
[1767745010359,0.010691,93571.0,93554.0,0.09636028]
[1767745010760,0.010692,93569.0,93554.0,0.10705328]
[1767745011466,0.09092,93568.0,93554.0,0.10705328]
[1767745011660,0.09092,93568.0,93549.0,0.05355241]
[1767745011866,0.010692,93562.0,93547.0,0.010694]
[1767745012069,0.08123362,93562.0,93541.0,0.010695]
[1767745012260,0.010693,93558.0,93543.0,0.010694]
[1767745012458,0.09092,93557.0,93536.0,0.09636028]
[1767745012653,0.010694,93553.0,93537.0,0.010695]
[1767745013067,0.010693,93556.0,93537.0,0.010695]
[1767745013264,0.09472267,93556.0,93539.0,0.01283316]
[1767745013660,0.010694,93549.0,93539.0,0.00213816]
[1767745013861,0.010694,93547.0,93539.0,0.00213816]
[1767745014063,0.101614,93547.0,93539.0,0.00213816]
[1767745014371,0.101614,93547.0,93533.0,0.010696]
[1767745014667,0.09092,93547.0,93533.0,0.010696]
[1767745017065,0.010694,93546.0,93530.0,0.010696]
[1767745017267,0.010695,93544.0,93527.0,0.010696]
[1767745017466,0.09092,93547.0,93529.0,0.010696]
[1767745017675,0.101614,93547.0,93531.0,0.010696]
[1767745019073,0.09092,93547.0,93527.0,0.09636028]
[1767745019275,0.05907349,93571.0,93527.0,0.09636028]
[1767745019276,0.010692,93562.0,93553.0,0.0926226]
[1767745019474,0.09092,93561.0,93546.0,0.010694]
[1767745019676,0.010692,93569.0,93533.0,0.09092]
[1767745019876,0.010691,93573.0,93533.0,0.09092]
[1767745020078,0.08453393,93576.0,93555.0,0.010693]
[1767745020079,0.09092,93572.0,93555.0,0.010693]
[1767745020271,0.04215741,93579.0,93542.0,0.010695]
[1767745020470,0.09600111,93582.0,93542.0,0.010695]
[1767745020471,0.09092,93578.0,93559.0,0.010693]
[1767745020871,0.010689,93588.0,93565.0,0.010692]
[1767745021172,0.01069,93585.0,93565.0,0.010692]
[1767745021769,0.09092,93584.0,93565.0,0.10472852]
[1767745021968,0.09092,93584.0,93561.0,0.05080794]
[1767745022165,0.010691,93577.0,93559.0,0.09403652]
[1767745022374,0.010691,93577.0,93558.0,0.010693]
[1767745022375,0.010691,93572.0,93555.0,0.09092]
[1767745022679,0.010691,93576.0,93556.0,0.10472952]
[1767745022880,0.09092,93584.0,93544.0,0.09403652]
[1767745022881,0.14172431,93568.0,93544.0,0.09403652]
[1767745023081,0.010691,93572.0,93532.0,0.10473252]
[1767745023082,0.010694,93552.0,93532.0,0.10473252]
[1767745023966,0.09092,93554.0,93532.0,0.10473252]
[1767745023967,0.010694,93550.0,93532.0,0.10473252]
[1767745024172,0.010694,93548.0,93532.0,0.09403652]
[1767745024466,0.010694,93548.0,93530.0,0.010696]
[1767745024977,0.010694,93552.0,93533.0,0.010696]
[1767745025178,0.010694,93550.0,93533.0,0.010696]
[1767745025583,0.010694,93550.0,93530.0,0.010696]
[1767745026182,0.010694,93550.0,93532.0,0.010696]
[1767745026681,0.010694,93548.0,93529.0,0.06150394]
[1767745027874,0.14172431,93570.0,93545.0,0.09403652]
[1767745028190,0.010693,93558.0,93545.0,0.09403652]
[1767745028373,0.09228464,93577.0,93553.0,0.14484446]
[1767745028571,0.010692,93570.0,93538.0,0.09092]
[1767745028777,0.09228464,93575.0,93543.0,0.010695]
[1767745028974,0.010692,93563.0,93544.0,0.010694]
[1767745029184,0.010692,93563.0,93546.0,0.010694]
[1767745029379,0.010692,93566.0,93548.0,0.010694]
[1767745029582,0.010692,93566.0,93550.0,0.010694]
[1767745029784,0.09092,93565.0,93550.0,0.010694]
[1767745030087,0.09092,93565.0,93538.0,0.09092]
[1767745030088,0.09092,93565.0,93552.0,0.010693]
[1767745030894,0.101612,93565.0,93549.0,0.010694]
[1767745031081,0.010692,93563.0,93546.0,0.010694]
[1767745031486,0.09092,93565.0,93542.0,0.15553946]
[1767745031680,0.04943967,93562.0,93539.0,0.010695]
[1767745031880,0.04943967,93562.0,93536.0,0.05080794]
[1767745031881,0.010694,93551.0,93536.0,0.010695]
[1767745032177,0.010694,93551.0,93521.0,0.09403652]
[1767745032178,0.04943967,93543.0,93521.0,0.09403652]
[1767745032379,0.010695,93538.0,93522.0,0.010697]
[1767745032782,0.010695,93541.0,93524.0,0.010697]
[1767745032989,0.09228464,93542.0,93526.0,0.010696]
[1767745033188,0.09228464,93542.0,93528.0,0.010696]
[1767745033383,0.09228464,93542.0,93525.0,0.010697]
[1767745034188,0.15241931,93541.0,93517.0,0.09092]
[1767745034588,0.15241931,93541.0,93524.0,0.010697]
[1767745034989,0.14172431,93541.0,93517.0,0.09092]
[1767745035185,0.09228464,93541.0,93524.0,0.010697]
[1767745035380,0.09228464,93541.0,93526.0,0.010696]
[1767745035686,0.09228464,93556.0,93529.0,0.14484446]
[1767745035886,0.010694,93552.0,93529.0,0.14484446]
[1767745036189,0.09096,93551.0,93532.0,0.010696]
[1767745036587,0.04943967,93552.0,93537.0,0.010695]
[1767745036787,0.09096,93551.0,93539.0,0.05080794]
[1767745036978,0.09096,93551.0,93539.0,0.09306509]
[1767745037385,0.04943967,93552.0,93542.0,0.010695]
[1767745037587,0.04943967,93552.0,93539.0,0.09306509]
[1767745037896,0.09096,93559.0,93543.0,0.06150294]
[1767745038204,0.101653,93560.0,93540.0,0.010695]
[1767745038390,0.010693,93558.0,93540.0,0.010695]
[1767745039281,0.09096,93560.0,93540.0,0.010695]
[1767745040594,0.010693,93559.0,93540.0,0.010695]
[1767745041795,0.010693,93556.0,93538.0,0.010695]
[1767745042002,0.010693,93559.0,93538.0,0.010695]
[1767745042305,0.09096,93560.0,93537.0,0.09403652]
[1767745042594,0.14172431,93558.0,93536.0,0.010695]
[1767745042790,0.14172431,93557.0,93536.0,0.010695]
[1767745043099,0.010695,93544.0,93529.0,0.09096]
[1767745043282,0.14172431,93543.0,93529.0,0.09096]
[1767745043595,0.09228464,93541.0,93522.0,0.09096]
[1767745043794,0.010696,93535.0,93522.0,0.09096]
[1767745044485,0.010695,93538.0,93522.0,0.09096]
[1767745044889,0.09228464,93541.0,93522.0,0.101657]
[1767745045096,0.010695,93541.0,93522.0,0.09096]
[1767745045280,0.010695,93541.0,93523.0,0.010697]
[1767745046387,0.010695,93541.0,93525.0,0.010697]
[1767745048103,0.010695,93536.0,93522.0,0.09096]
[1767745048991,0.010695,93541.0,93527.0,0.010696]
[1767745050392,0.010695,93541.0,93520.0,7.871e-05]
[1767745050393,0.010696,93533.0,93520.0,0.01077571]
[1767745050593,0.010696,93531.0,93520.0,7.871e-05]
[1767745051186,0.02553016,93531.0,93520.0,7.871e-05]
[1767745052401,0.010696,93529.0,93520.0,7.871e-05]
[1767745052891,0.01483416,93531.0,93520.0,7.871e-05]
[1767745053087,0.010696,93532.0,93520.0,7.871e-05]
[1767745053489,0.02520264,93532.0,93520.0,7.871e-05]
[1767745053803,0.01490694,93544.0,93532.0,0.010696]
[1767745053995,0.14482011,93557.0,93532.0,0.010696]
[1767745053996,0.010694,93551.0,93532.0,0.010696]
[1767745054192,0.09096,93550.0,93539.0,0.010695]
[1767745054594,0.09096,93550.0,93536.0,0.010695]
[1767745054801,0.09096,93550.0,93531.0,0.14005539]
[1767745055102,0.09096,93550.0,93535.0,0.010695]
[1767745055402,0.09096,93550.0,93531.0,0.14005539]
[1767745055706,0.09096,93550.0,93535.0,0.010695]
[1767745057399,0.09096,93550.0,93537.0,0.010695]
[1767745057705,0.01438902,93551.0,93521.0,0.09096]
[1767745057706,0.01438902,93551.0,93539.0,0.14005539]
[1767745057897,0.09096,93554.0,93539.0,0.14005539]
[1767745058097,0.09096,93554.0,93539.0,0.010695]
[1767745058498,0.10571076,93554.0,93539.0,0.010695]
[1767745058798,0.09640577,93552.0,93541.0,0.010695]
[1767745059006,0.09640577,93552.0,93529.0,0.05874989]
[1767745059198,0.09640577,93552.0,93530.0,0.14005539]
[1767745059505,0.10571076,93554.0,93541.0,0.010695]
[1767745060008,0.10571076,93554.0,93543.0,0.010695]
[1767745060505,0.10571076,93554.0,93532.0,0.14005539]
[1767745060895,0.10571076,93554.0,93541.0,0.010695]
[1767745062197,0.11640376,93554.0,93538.0,0.010695]
[1767745062599,0.14482011,93553.0,93538.0,0.010695]
[1767745062798,0.14482011,93553.0,93532.0,0.0920015]
[1767745063001,0.14482011,93553.0,93542.0,0.010695]
[1767745064205,0.09640577,93567.0,93554.0,0.010693]
[1767745064401,0.04841434,93564.0,93548.0,0.010694]
[1767745064596,0.14482011,93563.0,93550.0,0.010694]
[1767745064913,0.09096,93566.0,93533.0,0.09096]
[1767745064914,0.14482011,93548.0,93533.0,0.09096]
[1767745065095,0.14482011,93548.0,93539.0,0.010695]
[1767745065297,0.09640577,93548.0,93533.0,0.09096]
[1767745065501,0.09640577,93548.0,93542.0,0.010695]
[1767745066709,0.04841434,93553.0,93533.0,0.09096]
[1767745067401,0.14482011,93553.0,93533.0,0.09096]
[1767745070209,0.14482011,93553.0,93541.0,0.010695]
[1767745070413,0.14482011,93553.0,93533.0,0.09096]
[1767745070909,0.14482011,93553.0,93543.0,0.010695]
[1767745072111,0.09640577,93553.0,93542.0,0.010695]
[1767745072697,0.09640577,93559.0,93549.0,0.010694]
[1767745073004,0.09096,93558.0,93553.0,0.010693]
[1767745073307,0.04841434,93562.0,93549.0,0.010694]
[1767745073308,0.09640577,93560.0,93549.0,0.010694]
[1767745073514,0.09096,93559.0,93543.0,0.04805389]
[1767745073811,0.14482011,93565.0,93543.0,0.04805389]
[1767745074013,0.14482011,93562.0,93542.0,0.0920015]
[1767745074414,0.09096,93561.0,93551.0,0.010694]
[1767745074605,0.13937434,93561.0,93551.0,0.010694]
[1767745074802,0.04841434,93561.0,93551.0,0.010694]
[1767745074997,0.09096,93560.0,93551.0,0.010694]
[1767745075209,0.13937434,93560.0,93541.0,0.010695]
[1767745075515,0.09640577,93562.0,93553.0,0.010693]
[1767745075699,0.09096,93561.0,93552.0,0.010693]
[1767745076508,0.101653,93561.0,93541.0,0.04805389]
[1767745076711,0.14482011,93552.0,93536.0,0.010695]
[1767745077009,0.010695,93538.0,93530.0,0.1203]
[1767745077210,0.14482011,93539.0,93520.0,7.871e-05]
[1767745077417,0.04841434,93536.0,93520.0,7.871e-05]
[1767745077606,0.09096,93538.0,93520.0,7.871e-05]
[1767745077607,0.04841434,93534.0,93520.0,7.871e-05]
[1767745077807,0.09640577,93529.0,93518.0,0.010697]
[1767745078115,0.14482011,93529.0,93518.0,0.010697]
[1767745078908,7.731e-05,93528.0,93518.0,0.010697]
[1767745079909,7.731e-05,93528.0,93521.0,0.010697]
[1767745080306,7.731e-05,93528.0,93518.0,0.010697]
[1767745082214,0.09096,93527.0,93515.0,0.010698]
[1767745082411,0.09096,93527.0,93509.0,0.00213884]
[1767745082618,0.13830949,93526.0,93509.0,0.00213884]
[1767745083508,0.13830949,93526.0,93510.0,0.010698]
[1767745083714,0.04588438,93520.0,93509.0,0.00213884]
[1767745083906,0.13830949,93517.0,93502.0,0.010699]
[1767745084106,0.09096,93516.0,93492.0,0.04683526]
[1767745084408,0.22926949,93516.0,93493.0,0.04683526]
[1767745084608,0.22926949,93516.0,93503.0,0.010699]
[1767745085011,0.13830949,93515.0,93493.0,0.04683526]
[1767745085201,0.13830949,93514.0,93492.0,0.09347097]
[1767745085515,0.010698,93513.0,93493.0,0.0107]
[1767745085716,0.010698,93511.0,93493.0,0.0107]
[1767745086214,7.871e-05,93512.0,93488.0,0.04683526]
[1767745086407,7.871e-05,93512.0,93489.0,0.04683526]
[1767745087012,7.871e-05,93512.0,93489.0,0.14030623]
[1767745087210,0.04588438,93506.0,93484.0,0.04683526]
[1767745087415,0.09096,93505.0,93488.0,0.010701]
[1767745087613,7.871e-05,93504.0,93488.0,0.010701]
[1767745087821,7.871e-05,93504.0,93488.0,0.04683526]
[1767745088003,7.871e-05,93504.0,93491.0,0.0107]
[1767745088316,7.871e-05,93504.0,93493.0,0.0107]
[1767745089217,7.871e-05,93504.0,93489.0,0.14030623]
[1767745090016,7.871e-05,93504.0,93492.0,0.0107]
[1767745090813,7.871e-05,93504.0,93490.0,0.14030623]
[1767745091414,7.871e-05,93504.0,93495.0,0.0107]
[1767745092717,7.871e-05,93504.0,93497.0,0.0107]
[1767745093106,7.871e-05,93504.0,93493.0,0.0107]
[1767745093816,7.871e-05,93504.0,93495.0,0.0107]
[1767745094012,7.871e-05,93504.0,93494.0,0.0107]
[1767745094212,7.871e-05,93504.0,93491.0,0.14030623]
[1767745094413,0.04588438,93522.0,93502.0,0.04683526]
[1767745094612,0.09242511,93526.0,93505.0,0.04683526]
[1767745094613,0.09096,93521.0,93505.0,0.04683526]
[1767745094809,0.09242511,93526.0,93516.0,0.010698]
[1767745095117,0.09096,93525.0,93510.0,0.010698]
[1767745095322,0.010697,93523.0,93507.0,0.010699]
[1767745095523,0.010697,93523.0,93509.0,0.010698]
[1767745096122,0.09096,93522.0,93509.0,0.010698]
[1767745096324,0.09096,93522.0,93504.0,0.04683526]
[1767745096325,0.09096,93522.0,93511.0,0.010698]
[1767745097210,0.010697,93526.0,93511.0,0.010698]
[1767745097421,0.010697,93524.0,93511.0,0.010698]
[1767745098114,0.49096,93525.0,93511.0,0.010698]
[1767745098516,0.49096,93525.0,93504.0,0.04683526]
[1767745098711,0.04588438,93524.0,93502.0,0.09347097]
[1767745098917,0.010698,93518.0,93496.0,0.14030623]
[1767745099225,0.13830949,93517.0,93504.0,0.010699]
[1767745099522,0.13830949,93515.0,93492.0,0.04683526]
[1767745099724,0.22930949,93514.0,93492.0,0.04683526]
[1767745100224,0.22930949,93514.0,93505.0,0.010699]
[1767745100419,0.18342511,93514.0,93505.0,0.010699]
[1767745102417,0.18342511,93514.0,93503.0,0.010699]
[1767745102924,0.18342511,93514.0,93507.0,0.010699]
[1767745103423,0.18342511,93514.0,93505.0,0.010699]
[1767745104520,0.18342511,93514.0,93502.0,0.010699]
[1767745105425,0.18342511,93514.0,93493.0,0.04683526]
[1767745105426,0.18342511,93514.0,93496.0,0.0107]
[1767745105927,0.04588438,93512.0,93492.0,0.09347097]
[1767745106112,0.09242511,93519.0,93504.0,0.010699]
[1767745106318,0.101697,93518.0,93505.0,0.010699]
[1767745106630,0.091,93517.0,93506.0,0.010699]
[1767745107028,0.101698,93517.0,93503.0,0.010699]
[1767745107328,0.101698,93517.0,93505.0,0.010699]
[1767745107732,0.101698,93517.0,93500.0,0.08995307]
[1767745107920,0.13830949,93515.0,93500.0,0.08995307]
[1767745108120,0.04588438,93513.0,93493.0,0.09347097]
[1767745108630,0.13830949,93512.0,93492.0,0.05753526]
[1767745108934,0.04588438,93511.0,93499.0,0.0107]
[1767745109127,0.04588438,93511.0,93500.0,0.010699]
[1767745109525,0.04588438,93511.0,93501.0,0.010699]
[1767745109724,0.04588438,93511.0,93492.0,0.0107]
[1767745110533,0.13830949,93511.0,93492.0,0.0107]
[1767745110833,0.13830949,93511.0,93503.0,0.010699]
[1767745111032,0.09242511,93511.0,93491.0,0.04683526]
[1767745111219,0.09242511,93511.0,93503.0,0.010699]
[1767745111833,0.09242511,93511.0,93500.0,0.08995307]
[1767745112223,0.09242511,93511.0,93492.0,0.04529517]
[1767745112423,0.09242511,93511.0,93500.0,0.08995307]
[1767745112624,0.09242511,93511.0,93505.0,0.010699]
[1767745112825,0.091,93510.0,93500.0,0.08995307]
[1767745113520,0.091,93509.0,93500.0,0.08995307]
[1767745114137,0.091,93509.0,93502.0,0.010699]
[1767745114437,0.091,93509.0,93500.0,0.08995307]
[1767745114737,0.14108144,93513.0,93500.0,0.08934176]
[1767745114937,0.13454346,93512.0,93500.0,0.08934176]
[1767745115234,0.13454346,93512.0,93500.0,0.010699]
[1767745115434,0.09753798,93519.0,93500.0,0.13524824]
[1767745115644,0.09753798,93519.0,93509.0,0.08995307]
[1767745115930,0.09753798,93526.0,93509.0,0.08995307]
[1767745116132,0.36112,93525.0,93517.0,0.010698]
[1767745116438,0.091,93524.0,93514.0,0.04529517]
[1767745116641,0.091,93523.0,93514.0,0.04529517]
[1767745116937,0.091,93522.0,93515.0,0.010698]
[1767745117126,0.091,93521.0,93515.0,0.010698]
[1767745117331,0.091,93521.0,93516.0,0.010698]
[1767745117530,0.010696,93530.0,93516.0,0.010698]
[1767745117832,0.091,93529.0,93520.0,0.08995307]
[1767745118030,0.091,93528.0,93515.0,0.010698]
[1767745118238,0.14108144,93525.0,93512.0,0.010698]
[1767745118439,0.14108144,93527.0,93514.0,0.010698]
[1767745118640,0.09753798,93525.0,93514.0,0.010698]
[1767745119141,0.091,93528.0,93510.0,0.08995307]
[1767745119637,0.04135773,93529.0,93510.0,0.08995307]
[1767745119845,0.010692,93570.0,93538.0,0.010695]
[1767745120034,0.010692,93570.0,93540.0,0.08995307]
[1767745120035,0.83148,93566.0,93540.0,0.08995307]
[1767745120236,0.08995307,93560.0,93534.0,0.09812134]
[1767745120430,0.10064607,93560.0,93541.0,0.010695]
[1767745120842,0.010693,93557.0,93530.0,0.08995307]
[1767745121052,0.091,93556.0,93530.0,0.08995307]
[1767745121849,0.01004281,93553.0,93536.0,0.010695]
[1767745122050,0.01004281,93553.0,93531.0,0.14341651]
[1767745122246,0.091,93552.0,93531.0,0.14341651]
[1767745122447,0.091,93552.0,93532.0,0.14341651]
[1767745122842,0.091,93552.0,93533.0,0.14341651]
[1767745123042,0.010693,93553.0,93533.0,0.14341651]
[1767745123247,0.09096,93552.0,93533.0,0.14341651]